fUST/lending_fUST_20240226
["ID","MTS","AMOUNT","RATE_DAILY","PERIOD"]
[315192108,1708919440340,-110000.0,0.00019168,2]
[315192110,1708919440349,-670.88,0.00019168,3]
[315192111,1708919440357,-335.44,0.00019168,3]
[315192113,1708919440367,-167.72,0.00019168,3]
[315192115,1708919440376,-503.2,0.00019168,3]
[315192117,1708919440386,-500.74123797,0.00019178,2]
[315192119,1708919440395,-501.7060502,0.00019178,2]
[315192121,1708919440405,-181.15034228,0.00019178,2]
[315192123,1708919440415,-500.0,0.00019178,2]
[315192125,1708919440424,-500.0,0.00019178,2]
[315192128,1708919440434,-500.0,0.00019178,2]
[315192130,1708919440443,-151.0,0.00019178,2]
[315192131,1708919440451,-500.0,0.00019178,2]
[315192133,1708919440462,-500.0,0.00019178,2]
[315192135,1708919440472,-1404.94,0.00019178,2]
[315192136,1708919440481,-500.0,0.00019178,2]
[315192137,1708919440491,-761.72,0.00019178,2]
[315192138,1708919440500,-477.95314472,0.00019178,2]
[315192139,1708919440510,-500.0,0.00019178,2]
[315192140,1708919440520,-507.32053121,0.00019178,2]
[315192141,1708919440529,-500.0,0.00019178,2]
[315192142,1708919440538,-500.0,0.00019178,2]
[315192143,1708919440548,-500.0,0.00019178,2]
[315192144,1708919440557,-500.0,0.00019178,2]
[315192145,1708919440566,-500.0,0.00019178,2]
[315192146,1708919440575,-231.56852676,0.00019178,2]
[315192147,1708919440585,-1000.0,0.00019178,2]
[315192148,1708919440595,-500.0,0.00019178,2]
[315192149,1708919440604,-522.16106929,0.00019178,2]
[315192150,1708919440614,-500.0,0.00019178,2]
[315192151,1708919440623,-291.02772414,0.00019178,2]
[315192152,1708919440633,-409.80494479,0.00019178,2]
[315192153,1708919440642,-500.0,0.00019178,2]
[315192154,1708919440652,-500.0,0.00019178,2]
[315192155,1708919440661,-500.0,0.00019178,2]
[315192156,1708919440670,-500.0,0.00019178,2]
[315192157,1708919440680,-500.0,0.00019178,2]
[315192158,1708919440690,-501.17230716,0.00019178,2]
[315192159,1708919440699,-500.33386123,0.00019178,2]
[315192160,1708919440709,-500.0,0.00019178,2]
[315192161,1708919440719,-500.0,0.00019178,2]
[315192162,1708919440728,-500.0,0.00019178,2]
[315192163,1708919440737,-500.0,0.00019178,2]
[315192164,1708919440747,-502.14294064,0.00019178,2]
[315192165,1708919440756,-500.0,0.00019178,2]
[315192166,1708919440765,-500.0,0.00019178,2]
[315192167,1708919440776,-500.0,0.00019178,2]
[315192168,1708919440785,-500.0,0.00019178,2]
[315192169,1708919440794,-500.0,0.00019178,2]
[315192170,1708919440803,-500.0,0.00019178,2]
[315192171,1708919440812,-604.40046169,0.00019178,2]
[315192172,1708919440823,-230.48065429,0.00019178,2]
[315192173,1708919440857,-500.0,0.00019178,2]
[315192174,1708919440867,-726.3,0.00019178,2]
[315192175,1708919440876,-418.40116223,0.00019178,2]
[315192176,1708919440885,-500.0,0.00019178,2]
[315192177,1708919440895,-500.0,0.00019178,2]
[315192178,1708919440904,-500.0,0.00019178,2]
[315192179,1708919440913,-503.7577512,0.00019178,2]
[315192180,1708919440923,-601.83460681,0.00019178,2]
[315192181,1708919440932,-500.0,0.00019178,2]
[315192182,1708919440941,-500.0,0.00019178,2]
[315192183,1708919440949,-500.0,0.00019178,2]
[315192184,1708919440959,-500.0,0.00019178,2]
[315192185,1708919440968,-575.46,0.00019178,2]
[315192186,1708919440977,-500.0,0.00019178,2]
[315192187,1708919440987,-501.09881645,0.00019178,2]
[315192188,1708919440996,-500.0,0.00019178,2]
[315192189,1708919441005,-500.0,0.00019178,2]
[315192190,1708919441014,-504.21335184,0.00019178,2]
[315192191,1708919441023,-501.27258164,0.00019178,2]
[315192192,1708919441033,-500.0,0.00019178,2]
[315192193,1708919441042,-310.21411182,0.00019178,2]
[315192194,1708919441051,-500.0,0.00019178,2]
[315192195,1708919441060,-500.0,0.00019178,2]
[315192196,1708919441069,-500.0,0.00019178,2]
[315192197,1708919441078,-500.0,0.00019178,2]
[315192198,1708919441087,-501.671664,0.00019178,2]
[315192199,1708919441095,-501.08038985,0.00019178,2]
[315192200,1708919441104,-500.0,0.00019178,2]
[315192201,1708919441113,-266.2521577,0.00019178,2]
[315192202,1708919441123,-500.0,0.00019178,2]
[315192203,1708919441132,-502.20415089,0.00019178,2]
[315192204,1708919441141,-500.0,0.00019178,2]
[315192205,1708919441150,-500.0,0.00019178,2]
[315192206,1708919441159,-500.0,0.00019178,2]
[315192207,1708919441168,-500.0,0.00019178,2]
[315192208,1708919441176,-500.0,0.00019178,2]
[315192209,1708919441185,-500.0,0.00019178,2]
[315192210,1708919441195,-500.0,0.00019178,2]
[315192211,1708919441205,-500.0,0.00019178,2]
[315192212,1708919441214,-500.0,0.00019178,2]
[315192213,1708919441226,-292.15226253,0.00019178,2]
[315192214,1708919441236,-500.89874379,0.00019178,2]
[315192215,1708919441245,-500.77483683,0.00019178,2]
[315192216,1708919441254,-500.0,0.00019178,2]
[315192217,1708919441263,-1282.67,0.00019178,2]
[315192218,1708919441273,-500.0,0.00019178,2]
[315192219,1708919441281,-500.79176669,0.00019178,2]
[315192220,1708919441290,-500.0,0.00019178,2]
[315192221,1708919441301,-500.0,0.00019178,2]
[315192222,1708919441312,-500.0,0.00019178,2]
[315192223,1708919441321,-500.71576396,0.00019178,2]
[315192224,1708919441331,-500.0,0.00019178,2]
[315192225,1708919441339,-233.39371424,0.00019178,2]
[315192226,1708919441349,-500.0,0.00019178,2]
[315192227,1708919441358,-500.0,0.00019178,2]
[315192228,1708919441366,-500.0,0.00019178,2]
[315192229,1708919441376,-500.0,0.00019178,2]
[315192230,1708919441385,-500.0,0.00019178,2]
[315192231,1708919441395,-500.0,0.00019178,2]
[315192232,1708919441405,-559.15393256,0.00019178,2]
[315192233,1708919441414,-500.0,0.00019178,2]
[315192234,1708919441424,-2206.71,0.00019178,2]
[315192235,1708919441432,-500.0,0.00019178,2]
[315192236,1708919441442,-500.0,0.00019178,2]
[315192237,1708919441451,-500.0,0.00019178,2]
[315192238,1708919441461,-483.72738854,0.00019178,2]
[315192239,1708919441470,-500.0,0.00019178,2]
[315192240,1708919441479,-625.42418901,0.00019178,2]
[315192241,1708919441488,-500.0,0.00019178,2]
[315192242,1708919441497,-500.77094281,0.00019178,2]
[315192243,1708919441506,-631.67993521,0.00019178,2]
[315192244,1708919441516,-500.0,0.00019178,2]
[315192245,1708919441525,-500.0,0.00019178,2]
[315192246,1708919441534,-500.0,0.00019178,2]
[315192247,1708919441543,-1713.17,0.00019178,2]
[315192248,1708919441552,-500.0,0.00019178,2]
[315192249,1708919441562,-500.0,0.00019178,2]
[315192250,1708919441571,-500.0,0.00019178,2]
[315192251,1708919441580,-500.0,0.00019178,2]
[315192252,1708919441590,-500.0,0.00019178,2]
[315192253,1708919441599,-500.0,0.00019178,2]
[315192254,1708919441608,-500.0,0.00019178,2]
[315192255,1708919441617,-1617.06,0.00019178,2]
[315192256,1708919441626,-500.0,0.00019178,2]
[315192257,1708919441636,-500.0,0.00019178,2]
[315192258,1708919441645,-500.0,0.00019178,2]
[315192259,1708919441654,-500.0,0.00019178,2]
[315192260,1708919441663,-500.91762408,0.00019178,2]
[315192261,1708919441673,-500.25009152,0.00019178,2]
[315192262,1708919441682,-689.58,0.00019178,2]
[315192263,1708919441691,-500.0,0.00019178,2]
[315192264,1708919441700,-500.0,0.00019178,2]
[315192265,1708919441710,-500.0,0.00019178,2]
[315192266,1708919441719,-500.0,0.00019178,2]
[315192267,1708919441728,-581.42135505,0.00019178,2]
[315192268,1708919441737,-500.0,0.00019178,2]
[315192269,1708919441746,-500.0,0.00019178,2]
[315192270,1708919441756,-500.0,0.00019178,2]
[315192271,1708919441765,-998.74,0.00019178,2]
[315192272,1708919441774,-500.0,0.00019178,2]
[315192273,1708919441783,-500.0,0.00019178,2]
[315192274,1708919441792,-500.0,0.00019178,2]
[315192275,1708919441802,-500.0,0.00019178,2]
[315192276,1708919441811,-500.0,0.00019178,2]
[315192277,1708919441821,-542.91475933,0.00019178,2]
[315192278,1708919441829,-500.0,0.00019178,2]
[315192279,1708919441839,-502.59254661,0.00019178,2]
[315192280,1708919441849,-743.92,0.00019178,2]
[315192281,1708919441858,-397.25117169,0.00019178,2]
[315192282,1708919441965,-500.0,0.00019178,2]
[315192283,1708919441975,-500.0,0.00019178,2]
[315192284,1708919441985,-500.0,0.00019178,2]
[315192285,1708919441994,-500.0,0.00019178,2]
[315192286,1708919442003,-500.67937489,0.00019178,2]
[315192287,1708919442012,-500.0,0.00019178,2]
[315192288,1708919442021,-500.0,0.00019178,2]
[315192289,1708919442030,-500.0,0.00019178,2]
[315192290,1708919442039,-500.0,0.00019178,2]
[315192291,1708919442049,-500.0,0.00019178,2]
[315192292,1708919442057,-500.0,0.00019178,2]
[315192293,1708919442066,-11036.19,0.00019178,2]
[315192294,1708919442075,-926.12,0.00019178,2]
[315192295,1708919442085,-500.0,0.00019178,2]
[315192296,1708919442094,-2871.16,0.00019178,2]
[315192297,1708919442103,-500.0,0.00019178,2]
[315192298,1708919442111,-500.0,0.00019178,2]
[315192299,1708919442120,-500.0,0.00019178,2]
[315192300,1708919442129,-500.0,0.00019178,2]
[315192301,1708919442139,-500.0,0.00019178,2]
[315192302,1708919442148,-500.0,0.00019178,2]
[315192303,1708919442156,-200.0,0.00019178,2]
[315192304,1708919442166,-4175.75,0.00019178,2]
[315192305,1708919442175,-1931.64,0.00019178,2]
[315192306,1708919442184,-2546.44,0.00019178,2]
[315192307,1708919442193,-500.0,0.00019178,2]
[315192308,1708919442202,-500.0,0.00019178,2]
[315192309,1708919442213,-500.60648921,0.00019178,2]
[315192310,1708919442225,-500.0,0.00019178,2]
[315192311,1708919442235,-368.55067157,0.00019178,2]
[315192312,1708919442244,-500.0,0.00019178,2]
[315192313,1708919442253,-500.0,0.00019178,2]
[315192314,1708919442262,-543.31285923,0.00019178,2]
[315192315,1708919442272,-500.0,0.00019178,2]
[315192316,1708919442280,-506.82130633,0.00019178,2]
[315192317,1708919442290,-500.0,0.00019178,2]
[315192318,1708919442300,-1000.0,0.00019178,2]
[315192319,1708919442309,-500.0,0.00019178,2]
[315192320,1708919442319,-500.0,0.00019178,2]
[315192321,1708919442328,-500.0,0.00019178,2]
[315192322,1708919442337,-500.43159131,0.00019178,2]
[315192323,1708919442346,-500.0,0.00019178,2]
[315192324,1708919442355,-500.0,0.00019178,2]
[315192325,1708919442363,-500.0,0.00019178,2]
[315192326,1708919442372,-500.0,0.00019178,2]
[315192327,1708919442381,-500.0,0.00019178,2]
[315192328,1708919442391,-500.0,0.00019178,2]
[315192329,1708919442400,-500.0,0.00019178,2]
[315192330,1708919442409,-2014.74,0.00019178,2]
[315192331,1708919442418,-500.0,0.00019178,2]
[315192332,1708919442426,-2190.26,0.00019178,2]
[315192333,1708919442435,-500.0,0.00019178,2]
[315192334,1708919442445,-625.28,0.00019178,2]
[315192335,1708919442454,-500.0,0.00019178,2]
[315192336,1708919442464,-500.0,0.00019178,2]
[315192337,1708919442474,-500.0,0.00019178,2]
[315192338,1708919442483,-500.0,0.00019178,2]
[315192339,1708919442493,-500.0,0.00019178,2]
[315192341,1708919442503,-506.6715186,0.00019178,2]
[315192342,1708919442512,-500.0,0.00019178,2]
[315192343,1708919442521,-500.0,0.00019178,2]
[315192344,1708919442531,-500.0,0.00019178,2]
[315192345,1708919442540,-501.16229543,0.00019178,2]
[315192346,1708919442549,-573.72782983,0.00019178,2]
[315192347,1708919442558,-500.20438763,0.00019178,2]
[315192348,1708919442567,-500.0,0.00019178,2]
[315192349,1708919442576,-500.0,0.00019178,2]
[315192350,1708919442585,-500.0,0.00019178,2]
[315192351,1708919442594,-500.0,0.00019178,2]
[315192352,1708919442603,-500.0,0.00019178,2]
[315192353,1708919442612,-500.0,0.00019178,2]
[315192354,1708919442621,-22783.65,0.00019178,2]
[315192355,1708919442630,-500.0,0.00019178,2]
[315192356,1708919442639,-500.0,0.00019178,2]
[315192357,1708919442648,-500.43962735,0.00019178,2]
[315192358,1708919442657,-500.0,0.00019178,2]
[315192359,1708919442666,-268.97832651,0.00019178,2]
[315192360,1708919442675,-500.0,0.00019178,2]
[315192361,1708919442683,-500.0,0.00019178,2]
[315192362,1708919442692,-500.0,0.00019178,2]
[315192363,1708919442701,-359.8403748,0.00019178,2]
[315192364,1708919442712,-500.0,0.00019178,2]
[315192365,1708919442721,-501.0884164,0.00019178,2]
[315192366,1708919442730,-500.0,0.00019178,2]
[315192367,1708919442738,-500.0,0.00019178,2]
[315192368,1708919442747,-500.0,0.00019178,2]
[315192369,1708919442756,-500.0,0.00019178,2]
[315192370,1708919442765,-500.0,0.00019178,2]
[315192371,1708919442774,-500.0,0.00019178,2]
[315192372,1708919442783,-500.76681216,0.00019178,2]
[315192373,1708919442792,-1778.63,0.00019178,2]
[315192374,1708919442801,-2274.91,0.00019178,2]
[315192375,1708919442810,-500.0,0.00019178,2]
[315192376,1708919442819,-500.0,0.00019178,2]
[315192377,1708919442828,-500.0,0.00019178,2]
[315192378,1708919442837,-500.0,0.00019178,2]
[315192379,1708919442846,-518.49613271,0.00019178,2]
[315192380,1708919442855,-500.0,0.00019178,2]
[315192381,1708919442864,-592.7,0.00019178,2]
[315192382,1708919442873,-592.7,0.00019178,2]
[315192383,1708919442882,-592.7,0.00019178,2]
[315192384,1708919442891,-500.0,0.00019178,2]
[315192385,1708919442900,-8250.54,0.00019178,2]
[315192386,1708919442910,-500.3462092,0.00019178,2]
[315192387,1708919442919,-500.0,0.00019178,2]
[315192388,1708919442927,-11233.87,0.00019178,2]
[315192389,1708919442936,-234.57397735,0.00019178,2]
[315192390,1708919442945,-790.89,0.00019178,2]
[315192391,1708919442954,-500.0,0.00019178,2]
[315192392,1708919442964,-500.0,0.00019178,2]
[315192393,1708919442973,-643.67,0.00019178,2]
[315192394,1708919442982,-2405.23,0.00019178,2]
[315192395,1708919442991,-3074.48,0.00019178,2]
[315192396,1708919443000,-500.0,0.00019178,2]
[315192397,1708919443009,-500.0,0.00019178,2]
[315192398,1708919443018,-500.0,0.00019178,2]
[315192399,1708919443027,-500.0,0.00019178,2]
[315192400,1708919443036,-500.0,0.00019178,2]
[315192401,1708919443045,-3496.35,0.00019178,2]
[315192402,1708919443054,-500.0,0.00019178,2]
[315192403,1708919443063,-500.0,0.00019178,2]
[315192404,1708919443072,-500.0,0.00019178,2]
[315192405,1708919443082,-4348.38,0.00019178,2]
[315192406,1708919443091,-625.93045909,0.00019178,2]
[315192407,1708919443100,-500.0,0.00019178,2]
[315192408,1708919443109,-22902.69,0.00019178,2]
[315192409,1708919443118,-1541.99,0.00019178,2]
[315192410,1708919443127,-3109.93,0.00019178,2]
[315192411,1708919443136,-500.0,0.00019178,2]
[315192412,1708919443145,-1270.54,0.00019178,2]
[315192413,1708919443154,-500.0,0.00019178,2]
[315192414,1708919443164,-500.0,0.00019178,2]
[315192415,1708919443172,-500.58116796,0.00019178,2]
[315192416,1708919443182,-500.0,0.00019178,2]
[315192417,1708919443191,-1654.62,0.00019178,2]
[315192418,1708919443200,-500.0,0.00019178,2]
[315192419,1708919443209,-500.52146874,0.00019178,2]
[315192420,1708919443221,-500.0,0.00019178,2]
[315192421,1708919443231,-500.0,0.00019178,2]
[315192422,1708919443240,-500.0,0.00019178,2]
[315192423,1708919443250,-500.0,0.00019178,2]
[315192424,1708919443259,-2130.39,0.00019178,2]
[315192425,1708919443269,-500.0,0.00019178,2]
[315192426,1708919443278,-266.51557641,0.00019178,2]
[315192427,1708919443287,-500.0,0.00019178,2]
[315192428,1708919443296,-491.43084547,0.00019178,2]
[315192429,1708919443307,-500.0,0.00019178,2]
[315192430,1708919443317,-501.13519098,0.00019178,2]
[315192431,1708919443326,-500.0,0.00019178,2]
[315192432,1708919443336,-500.0,0.00019178,2]
[315192433,1708919443345,-500.0,0.00019178,2]
[315192434,1708919443353,-500.0,0.00019178,2]
[315192435,1708919443361,-500.0,0.00019178,2]
[315192436,1708919443371,-1590.92,0.00019178,2]
[315192437,1708919443380,-500.0,0.00019178,2]
[315192438,1708919443390,-500.0,0.00019178,2]
[315192439,1708919443399,-400.24472666,0.00019178,2]
[315192440,1708919443408,-163.6093,0.00019178,2]
[315192441,1708919443417,-166.666666,0.00019178,2]
[315192442,1708919443427,-165.961452,0.00019178,2]
[315192443,1708919443436,-174.0,0.000194,2]
[315192444,1708919443445,-344.8074923,0.000194,2]
[315192445,1708919443454,-592.7,0.0001945,2]
[315192446,1708919443464,-592.7,0.0001945,2]
[315192447,1708919443473,-592.7,0.00019451,2]
[315192448,1708919443483,-592.7,0.00019451,2]
[315192449,1708919443492,-592.7,0.00019451,2]
[315192450,1708919443501,-500.0,0.00019452,2]
[315192451,1708919443511,-410.68175763,0.00019452,2]
[315192452,1708919443520,-500.0,0.00019452,2]
[315192453,1708919443529,-500.0,0.00019452,2]
[315192454,1708919443539,-1404.94,0.00019452,2]
[315192455,1708919443548,-761.72,0.00019452,2]
[315192456,1708919443557,-500.0,0.00019452,2]
[315192457,1708919443566,-502.17659617,0.00019452,2]
[315192458,1708919443576,-500.0,0.00019452,2]
[315192459,1708919443585,-500.0,0.00019452,2]
[315192460,1708919443594,-500.0,0.00019452,2]
[315192461,1708919443603,-470.37536287,0.00019452,2]
[315192462,1708919443613,-500.0,0.00019452,2]
[315192463,1708919443622,-500.0,0.00019452,2]
[315192464,1708919443632,-503.94397976,0.00019452,2]
[315192465,1708919443641,-500.0,0.00019452,2]
[315192466,1708919443651,-500.0,0.00019452,2]
[315192467,1708919443660,-500.87195388,0.00019452,2]
[315192468,1708919443669,-500.0,0.00019452,2]
[315192469,1708919443680,-726.3,0.00019452,2]
[315192470,1708919443689,-500.0,0.00019452,2]
[315192471,1708919443698,-500.0,0.00019452,2]
[315192472,1708919443708,-503.93844908,0.00019452,2]
[315192473,1708919443717,-503.85838684,0.00019452,2]
[315192474,1708919443726,-619.10188517,0.00019452,2]
[315192475,1708919443735,-500.0,0.00019452,2]
[315192476,1708919443744,-575.46,0.00019452,2]
[315192477,1708919443754,-500.0,0.00019452,2]
[315192478,1708919443763,-500.0,0.00019452,2]
[315192479,1708919443773,-504.63239658,0.00019452,2]
[315192480,1708919443782,-500.0,0.00019452,2]
[315192481,1708919443791,-501.7897385,0.00019452,2]
[315192482,1708919443801,-500.0,0.00019452,2]
[315192483,1708919443810,-500.0,0.00019452,2]
[315192484,1708919443819,-500.0,0.00019452,2]
[315192485,1708919443828,-500.0,0.00019452,2]
[315192486,1708919443837,-503.01168124,0.00019452,2]
[315192487,1708919443846,-502.1574268,0.00019452,2]
[315192488,1708919443855,-500.0,0.00019452,2]
[315192489,1708919443864,-581.13636128,0.00019452,2]
[315192490,1708919443873,-179.15482802,0.00019452,2]
[315192491,1708919443882,-500.0,0.00019452,2]
[315192492,1708919443891,-500.0,0.00019452,2]
[315192493,1708919443900,-500.0,0.00019452,2]
[315192494,1708919443909,-500.0,0.00019452,2]
[315192495,1708919443918,-513.93926207,0.00019452,2]
[315192496,1708919443927,-1282.67,0.00019452,2]
[315192497,1708919443936,-500.0,0.00019452,2]
[315192498,1708919443945,-500.0,0.00019452,2]
[315192499,1708919443954,-500.0,0.00019452,2]
[315192500,1708919443963,-500.94944783,0.00019452,2]
[315192501,1708919443972,-500.0,0.00019452,2]
[315192502,1708919443981,-469.51232523,0.00019452,2]
[315192503,1708919443990,-500.0,0.00019452,2]
[315192504,1708919443999,-500.0,0.00019452,2]
[315192505,1708919444009,-2206.71,0.00019452,2]
[315192506,1708919444018,-500.0,0.00019452,2]
[315192507,1708919444027,-500.0,0.00019452,2]
[315192508,1708919444119,-501.03015626,0.00019452,2]
[315192509,1708919444129,-405.80118565,0.00019452,2]
[315192510,1708919444137,-502.13232332,0.00019452,2]
[315192511,1708919444146,-500.0,0.00019452,2]
[315192512,1708919444155,-1713.17,0.00019452,2]
[315192513,1708919444165,-501.82744386,0.00019452,2]
[315192514,1708919444174,-500.0,0.00019452,2]
[315192515,1708919444183,-500.0,0.00019452,2]
[315192516,1708919444191,-500.0,0.00019452,2]
[315192517,1708919444201,-500.0,0.00019452,2]
[315192518,1708919444210,-500.0,0.00019452,2]
[315192519,1708919444221,-1617.06,0.00019452,2]
[315192520,1708919444231,-500.0,0.00019452,2]
[315192521,1708919444240,-500.0,0.00019452,2]
[315192522,1708919444249,-500.0,0.00019452,2]
[315192523,1708919444258,-689.58,0.00019452,2]
[315192524,1708919444268,-500.0,0.00019452,2]
[315192525,1708919444277,-500.0,0.00019452,2]
[315192526,1708919444287,-500.0,0.00019452,2]
[315192527,1708919444296,-500.0,0.00019452,2]
[315192528,1708919444304,-500.0,0.00019452,2]
[315192529,1708919444313,-998.74,0.00019452,2]
[315192530,1708919444323,-544.80572393,0.00019452,2]
[315192531,1708919444332,-500.0,0.00019452,2]
[315192532,1708919444341,-500.0,0.00019452,2]
[315192533,1708919444350,-500.0,0.00019452,2]
[315192534,1708919444359,-500.0,0.00019452,2]
[315192535,1708919444369,-500.0,0.00019452,2]
[315192536,1708919444378,-743.92,0.00019452,2]
[315192537,1708919444387,-500.0,0.00019452,2]
[315192538,1708919444396,-500.0,0.00019452,2]
[315192539,1708919444405,-500.0,0.00019452,2]
[315192540,1708919444414,-500.0,0.00019452,2]
[315192541,1708919444423,-500.0,0.00019452,2]
[315192542,1708919444432,-500.0,0.00019452,2]
[315192543,1708919444442,-390.70436853,0.00019452,2]
[315192544,1708919444451,-500.0,0.00019452,2]
[315192545,1708919444460,-548.47261146,0.00019452,2]
[315192546,1708919444469,-500.0,0.00019452,2]
[315192547,1708919444478,-11036.19,0.00019452,2]
[315192548,1708919444488,-926.12,0.00019452,2]
[315192549,1708919444497,-500.0,0.00019452,2]
[315192550,1708919444506,-2871.16,0.00019452,2]
[315192551,1708919444515,-500.0,0.00019452,2]
[315192552,1708919444525,-500.0,0.00019452,2]
[315192553,1708919444535,-500.0,0.00019452,2]
[315192554,1708919444544,-500.0,0.00019452,2]
[315192555,1708919444553,-503.84063376,0.00019452,2]
[315192556,1708919444563,-500.0,0.00019452,2]
[315192557,1708919444572,-4175.75,0.00019452,2]
[315192558,1708919444580,-1931.64,0.00019452,2]
[315192559,1708919444589,-2546.44,0.00019452,2]
[315192560,1708919444599,-500.0,0.00019452,2]
[315192561,1708919444608,-640.94855837,0.00019452,2]
[315192562,1708919444618,-501.32076136,0.00019452,2]
[315192563,1708919444628,-500.0,0.00019452,2]
[315192564,1708919444637,-500.0,0.00019452,2]
[315192565,1708919444646,-500.0,0.00019452,2]
[315192566,1708919444656,-500.0,0.00019452,2]
[315192567,1708919444665,-1000.0,0.00019452,2]
[315192568,1708919444674,-500.0,0.00019452,2]
[315192569,1708919444683,-442.24473459,0.00019452,2]
[315192570,1708919444693,-501.23926151,0.00019452,2]
[315192571,1708919444702,-516.12591653,0.00019452,2]
[315192572,1708919444712,-500.0,0.00019452,2]
[315192573,1708919444723,-500.0,0.00019452,2]
[315192574,1708919444732,-500.0,0.00019452,2]
[315192575,1708919444741,-500.0,0.00019452,2]
[315192576,1708919444751,-212.2436076,0.00019452,2]
[315192577,1708919444760,-500.0,0.00019452,2]
[315192578,1708919444769,-2014.74,0.00019452,2]
[315192579,1708919444778,-500.0,0.00019452,2]
[315192580,1708919444787,-2190.26,0.00019452,2]
[315192581,1708919444796,-500.0,0.00019452,2]
[315192582,1708919444804,-625.28,0.00019452,2]
[315192583,1708919444813,-500.0,0.00019452,2]
[315192584,1708919444822,-500.0,0.00019452,2]
[315192585,1708919444832,-500.0,0.00019452,2]
[315192586,1708919444841,-500.0,0.00019452,2]
[315192587,1708919444851,-497.00174819,0.00019452,2]
[315192588,1708919444860,-500.0,0.00019452,2]
[315192589,1708919444869,-500.0,0.00019452,2]
[315192590,1708919444879,-500.0,0.00019452,2]
[315192591,1708919444888,-500.74176148,0.00019452,2]
[315192592,1708919444898,-500.73988973,0.00019452,2]
[315192593,1708919444907,-500.0,0.00019452,2]
[315192594,1708919444917,-500.0,0.00019452,2]
[315192595,1708919444927,-500.0,0.00019452,2]
[315192596,1708919444936,-22783.65,0.00019452,2]
[315192597,1708919444946,-500.0,0.00019452,2]
[315192598,1708919444955,-500.0,0.00019452,2]
[315192599,1708919444967,-500.0,0.00019452,2]
[315192600,1708919444976,-581.01,0.00019452,2]
[315192601,1708919444985,-500.0,0.00019452,2]
[315192602,1708919444995,-500.0,0.00019452,2]
[315192603,1708919445004,-500.0,0.00019452,2]
[315192604,1708919445013,-500.0,0.00019452,2]
[315192605,1708919445022,-500.0,0.00019452,2]
[315192606,1708919445031,-500.63508727,0.00019452,2]
[315192607,1708919445041,-509.9265336,0.00019452,2]
[315192608,1708919445050,-500.0,0.00019452,2]
[315192609,1708919445060,-500.0,0.00019452,2]
[315192610,1708919445069,-1778.63,0.00019452,2]
[315192611,1708919445078,-2274.91,0.00019452,2]
[315192612,1708919445087,-501.91998645,0.00019452,2]
[315192613,1708919445097,-500.0,0.00019452,2]
[315192614,1708919445106,-500.0,0.00019452,2]
[315192615,1708919445115,-500.0,0.00019452,2]
[315192616,1708919445125,-500.0,0.00019452,2]
[315192617,1708919445135,-500.0,0.00019452,2]
[315192618,1708919445144,-8250.54,0.00019452,2]
[315192619,1708919445154,-500.0,0.00019452,2]
[315192620,1708919445163,-11233.87,0.00019452,2]
[315192621,1708919445173,-790.89,0.00019452,2]